fUST/lending_fUST_20241203
["ID","MTS","AMOUNT","RATE_DAILY","PERIOD"]
[343973049,1733164245003,-500.0,0.00027671,7]
[343973050,1733164245012,-500.0,0.00027671,7]
[343973051,1733164245025,-500.0,0.00027671,7]
[343973052,1733164245036,-253.8,0.00027671,7]
[343973053,1733164245046,-186.45567116,0.00027671,7]
[343973054,1733164245056,-500.0,0.00027671,7]
[343973055,1733164245066,-1167.18,0.00027671,7]
[343973056,1733164245151,-500.0,0.00027671,7]
[343973057,1733164245161,-500.0,0.00027671,7]
[343973058,1733164245171,-500.0,0.00027671,7]
[343973059,1733164245181,-500.0,0.00027673,5]
[343973060,1733164245191,-500.0,0.00027673,5]
[343973061,1733164245201,-261.30933656,0.00027725,2]
[343973062,1733164245211,-202.263856,0.0002787,2]
[343973063,1733164245222,-747.92836528,0.00027921,5]
[343973064,1733164245232,-304.28806382,0.00027945,7]
[343973065,1733164245242,-500.0,0.00027945,7]
[343973066,1733164245251,-154.0,0.00027945,7]
[343973067,1733164245262,-500.0,0.00027945,7]
[343973068,1733164245274,-500.0,0.00027945,7]
[343973069,1733164245283,-500.0,0.00027945,7]
[343973070,1733164245293,-568.38783952,0.00027945,7]
[343973071,1733164245303,-539.71,0.00027945,7]
[343973072,1733164245313,-2212.53,0.00027945,7]
[343973073,1733164245323,-500.0,0.00027945,7]
[343973074,1733164245332,-500.0,0.00027945,7]
[343973075,1733164245342,-500.0,0.00027945,7]
[343973076,1733164245351,-500.0,0.00027945,7]
[343973077,1733164245361,-1167.18,0.00027945,7]
[343973078,1733164245370,-379.86103445,0.00027945,7]
[343973079,1733164245381,-1000.0,0.00028,28]
[343973080,1733164245390,-389.30597043,0.00028067,2]
[343973081,1733164245400,-500.0,0.00028219,7]
[343973082,1733164245409,-491.18,0.00028219,7]
[343973083,1733164245419,-2212.53,0.00028219,7]
[343973084,1733164245429,-500.0,0.00028219,7]
[343973085,1733164245438,-500.0,0.00028219,7]
[343973086,1733164245448,-468.13,0.00028219,7]
[343973087,1733164245457,-1167.18,0.00028219,7]
[343973088,1733164245467,-501.01931317,0.00028221,5]
[343973089,1733164245476,-587.0,0.00028391,2]
[343973090,1733164245486,-500.0,0.00028493,7]
[343973091,1733164245495,-2212.53,0.00028493,7]
[343973092,1733164245505,-500.0,0.00028493,7]
[343973093,1733164245515,-1167.18,0.00028493,7]
[343973094,1733164245528,-500.0,0.00028767,7]
[343973095,1733164245538,-2212.53,0.00028767,7]
[343973096,1733164245547,-500.0,0.00028767,7]
[343973097,1733164245557,-1167.18,0.00028767,7]
[343973098,1733164245567,-184.427948,0.00028776,2]
[343973099,1733164245576,-186.874715,0.00028776,2]
[343973100,1733164245586,-153.56,0.000288,31]
[343973101,1733164245595,-153.56,0.000288,31]
[343973102,1733164245605,-389.30597043,0.00028837,2]
[343973103,1733164245615,-1000.0,0.00029,29]
[343973104,1733164245625,-500.0,0.00029041,7]
[343973105,1733164245634,-2212.53,0.00029041,7]
[343973106,1733164245644,-500.0,0.00029041,7]
[343973107,1733164245654,-1167.18,0.00029041,7]
[343973108,1733164245664,-587.0,0.0002922,2]
[343973109,1733164245673,-612.92110309,0.00029315,7]
[343973110,1733164245683,-2212.53,0.00029315,7]
[343973111,1733164245692,-500.0,0.00029315,7]
[343973112,1733164245702,-1167.18,0.00029315,7]
[343973113,1733164245711,-2212.53,0.00029589,7]
[343973114,1733164245721,-500.0,0.00029589,7]
[343973115,1733164245730,-1167.18,0.00029589,7]
[343973116,1733164245740,-153.56,0.000296,31]
[343973117,1733164245749,-153.56,0.000296,31]
[343973118,1733164245759,-153.56,0.000296,31]
[343973119,1733164245768,-153.56,0.000296,31]
[343973120,1733164245781,-389.30597043,0.00029606,2]
[343973121,1733164245791,-784.813109,0.00029746,15]
[343973122,1733164245800,-2212.53,0.00029863,7]
[343973123,1733164245810,-500.0,0.00029863,7]
[343973124,1733164245819,-1167.18,0.00029863,7]
[343973125,1733164245829,-1000.0,0.0003,120]
[343973127,1733164245839,-188.5095,0.0003,2]
[343973128,1733164245848,-151.0,0.0003,120]
[343973129,1733164245858,-151.0,0.0003,120]
[343973130,1733164245867,-157.0915,0.0003,2]
[343973131,1733164245877,-800.48228658,0.0003,2]
[343973133,1733164245886,-12487.12432266,0.0003,2]
[343973134,1733164245899,-1500.0,0.0003,2]
[343973135,1733164245908,-1881.96658484,0.0003,10]
[343973136,1733164245918,-1024.54898977,0.0003,7]
[343973137,1733164245927,-167.91287049,0.0003,2]
[343973138,1733164245939,-412.73792482,0.0003,10]
[343973139,1733164245948,-5570.85757403,0.0003,3]
[343973140,1733164245958,-185.0,0.0003,2]
[343973141,1733164245968,-2212.53,0.00030136,7]
[343973142,1733164245977,-500.0,0.00030136,7]
[343973143,1733164245986,-1167.18,0.00030136,7]
[343973144,1733164245996,-197.042322,0.00030137,120]
[343973145,1733164246005,-440.30652782,0.00030299,7]
[343973146,1733164246014,-17568.50000001,0.000303,10]
[343973147,1733164246027,-153.56,0.000303,31]
[343973149,1733164246037,-153.56,0.000303,31]
[343973150,1733164246046,-153.56,0.000303,31]
[343973152,1733164246056,-153.56,0.000303,31]
[343973153,1733164246065,-500.0,0.0003036,7]
[343973154,1733164246075,-500.0,0.0003036,7]
[343973155,1733164246085,-500.0,0.0003036,7]
[343973156,1733164246095,-500.0,0.0003036,7]
[343973157,1733164246106,-509.10275459,0.0003036,7]
[343973158,1733164246115,-500.0,0.0003036,7]
[343973159,1733164246126,-500.0,0.0003036,7]
[343973160,1733164246135,-500.0,0.0003036,7]
[343973161,1733164246144,-798.2,0.0003036,7]
[343973162,1733164246154,-500.0,0.0003036,7]
[343973163,1733164246163,-500.0,0.0003036,7]
[343973164,1733164246173,-500.0,0.0003036,7]
[343973165,1733164246183,-500.0,0.0003036,7]
[343973167,1733164246193,-500.0,0.0003036,7]
[343973168,1733164246202,-500.0,0.0003036,7]
[343973169,1733164246212,-500.0,0.0003036,7]
[343973170,1733164246221,-500.0,0.0003036,7]
[343973171,1733164246230,-500.0,0.0003036,7]
[343973172,1733164246240,-500.0,0.0003036,7]
[343973173,1733164246250,-384.73480572,0.0003036,7]
[343973174,1733164246259,-500.0,0.0003036,7]
[343973175,1733164246268,-500.0,0.0003036,7]
[343973176,1733164246282,-500.0,0.0003036,7]
[343973177,1733164246292,-500.0,0.0003036,7]
[343973178,1733164246301,-666.0,0.00030362,2]
[343973179,1733164246311,-6666.0,0.00030362,2]
[343973180,1733164246321,-2703.46111,0.00030376,2]
[343973181,1733164246330,-389.30597043,0.00030376,2]
[343973182,1733164246340,-772.12,0.000304,2]
[343973183,1733164246349,-980.83052185,0.000304,3]
[343973184,1733164246359,-187.0,0.000304,3]
[343973185,1733164246369,-2212.53,0.0003041,7]
[343973186,1733164246379,-500.0,0.0003041,7]
[343973187,1733164246390,-1167.18,0.0003041,7]
[343973189,1733164246399,-1221.0809417,0.00030425,2]
[343973191,1733164246408,-500.0,0.00030461,7]
[343973192,1733164246418,-151.0,0.00030462,7]
[343973193,1733164246427,-156.165391,0.00030462,7]
[343973195,1733164246437,-157.033705,0.00030462,7]
[343973196,1733164246446,-157.033705,0.00030462,7]
[343973197,1733164246456,-157.033705,0.00030462,7]
[343973198,1733164246466,-157.033705,0.00030462,7]
[343973199,1733164246475,-157.033705,0.00030462,7]
[343973200,1733164246485,-157.033705,0.00030462,7]
[343973201,1733164246494,-157.033705,0.00030462,7]
[343973202,1733164246504,-157.033705,0.00030462,7]
[343973203,1733164246513,-157.033705,0.00030462,7]
[343973204,1733164246524,-157.033705,0.00030462,7]
[343973205,1733164246533,-157.033705,0.00030462,7]
[343973206,1733164246542,-157.033705,0.00030462,7]
[343973207,1733164246551,-157.033705,0.00030462,7]
[343973208,1733164246561,-157.033705,0.00030462,7]
[343973209,1733164246574,-157.033705,0.00030462,7]
[343973210,1733164246586,-157.033705,0.00030462,7]
[343973211,1733164246596,-157.033705,0.00030462,7]
[343973212,1733164246606,-157.033705,0.00030462,7]
[343973213,1733164246616,-157.033705,0.00030462,7]
[343973214,1733164246625,-157.033703,0.00030462,7]
[343973215,1733164246635,-151.0,0.00030462,7]
[343973216,1733164246644,-151.0,0.00030462,7]
[343973217,1733164246653,-153.884172,0.00030462,7]
[343973218,1733164246663,-151.0,0.00030462,7]
[343973219,1733164246673,-151.0,0.00030462,7]
[343973220,1733164246683,-151.0,0.00030462,7]
[343973221,1733164246692,-151.0,0.00030462,7]
[343973222,1733164246702,-151.0,0.00030462,7]
[343973223,1733164246711,-151.0,0.00030462,7]
[343973224,1733164246720,-151.0,0.00030462,7]
[343973225,1733164246730,-151.0,0.00030462,7]
[343973226,1733164246739,-151.0,0.00030462,7]
[343973227,1733164246750,-151.0,0.00030462,7]
[343973228,1733164246761,-151.0,0.00030462,7]
[343973229,1733164246773,-151.0,0.00030462,7]
[343973230,1733164246782,-151.0,0.00030462,7]
[343973231,1733164246791,-151.0,0.00030462,7]
[343973232,1733164246800,-151.0,0.00030462,7]
[343973233,1733164246811,-298.142172,0.00030462,7]
[343973234,1733164246820,-500.0,0.00030473,5]
[343973235,1733164246830,-403.422885,0.00030476,7]
[343973236,1733164246840,-403.422885,0.00030476,7]
[343973237,1733164246850,-403.422885,0.00030476,7]
[343973238,1733164246860,-403.422885,0.00030476,7]
[343973239,1733164246870,-403.422885,0.00030476,7]
[343973240,1733164246880,-403.422885,0.00030476,7]
[343973241,1733164246890,-403.422885,0.00030476,7]
[343973242,1733164246900,-403.422885,0.00030476,7]
[343973243,1733164246909,-403.422885,0.00030476,7]
[343973244,1733164246919,-403.422885,0.00030476,7]
[343973245,1733164246929,-403.422885,0.00030476,7]
[343973246,1733164246938,-403.422885,0.00030476,7]
[343973247,1733164246947,-403.422885,0.00030476,7]
[343973248,1733164246957,-403.422885,0.00030476,7]
[343973249,1733164246967,-403.422885,0.00030476,7]
[343973250,1733164246977,-403.422885,0.00030476,7]
[343973251,1733164246986,-403.422885,0.00030476,7]
[343973252,1733164246995,-403.422885,0.00030476,7]
[343973253,1733164247004,-403.422885,0.00030476,7]
[343973254,1733164247014,-403.422877,0.00030476,7]
[343973255,1733164247026,-371.099312,0.00030476,7]
[343973256,1733164247035,-371.099312,0.00030476,7]
[343973257,1733164247045,-371.099312,0.00030476,7]
[343973258,1733164247055,-371.099312,0.00030476,7]
[343973259,1733164247064,-371.099312,0.00030476,7]
[343973260,1733164247074,-371.099312,0.00030476,7]
[343973261,1733164247084,-371.099312,0.00030476,7]
[343973262,1733164247093,-371.099312,0.00030476,7]
[343973263,1733164247103,-371.099312,0.00030476,7]
[343973264,1733164247112,-371.099312,0.00030476,7]
[343973265,1733164247121,-371.099312,0.00030476,7]
[343973266,1733164247131,-371.099312,0.00030476,7]
[343973267,1733164247140,-371.099312,0.00030476,7]
[343973268,1733164247150,-371.099312,0.00030476,7]
[343973269,1733164247159,-371.099312,0.00030476,7]
[343973270,1733164247169,-371.099312,0.00030476,7]
[343973271,1733164247178,-371.099312,0.00030476,7]
[343973272,1733164247188,-371.099312,0.00030476,7]
[343973273,1733164247198,-371.099312,0.00030476,7]
[343973274,1733164247207,-371.099322,0.00030476,7]
[343973275,1733164247217,-151.0,0.00030476,7]
[343973276,1733164247227,-151.0,0.00030476,7]
[343973277,1733164247236,-168.530228,0.00030476,7]
[343973278,1733164247245,-235.332972,0.00030476,7]
[343973279,1733164247254,-235.332972,0.00030476,7]
[343973280,1733164247265,-235.332972,0.00030476,7]
[343973281,1733164247277,-235.332972,0.00030476,7]
[343973282,1733164247287,-235.332972,0.00030476,7]
[343973283,1733164247371,-235.332972,0.00030476,7]
[343973284,1733164247382,-235.332972,0.00030476,7]
[343973285,1733164247392,-235.332972,0.00030476,7]
[343973286,1733164247401,-235.332972,0.00030476,7]
[343973287,1733164247411,-235.332972,0.00030476,7]
[343973288,1733164247420,-235.332972,0.00030476,7]
[343973289,1733164247430,-235.332972,0.00030476,7]
[343973290,1733164247440,-235.332972,0.00030476,7]
[343973291,1733164247449,-235.332972,0.00030476,7]
[343973292,1733164247458,-235.332972,0.00030476,7]
[343973293,1733164247468,-235.332972,0.00030476,7]
[343973294,1733164247477,-235.332972,0.00030476,7]
[343973295,1733164247487,-235.332972,0.00030476,7]
[343973296,1733164247496,-235.332972,0.00030476,7]
[343973297,1733164247506,-235.332981,0.00030476,7]
[343973298,1733164247515,-151.0,0.00030476,7]
[343973299,1733164247528,-151.0,0.00030476,7]
[343973300,1733164247538,-151.0,0.00030476,7]
[343973301,1733164247547,-151.0,0.00030476,7]
[343973302,1733164247557,-218.842112,0.00030476,7]
[343973303,1733164247566,-271.055748,0.00030476,7]
[343973304,1733164247576,-271.055748,0.00030476,7]
[343973305,1733164247586,-271.055748,0.00030476,7]
[343973306,1733164247595,-271.055748,0.00030476,7]
[343973307,1733164247605,-271.055748,0.00030476,7]
[343973308,1733164247615,-271.055748,0.00030476,7]
[343973309,1733164247624,-271.055748,0.00030476,7]
[343973310,1733164247634,-271.055748,0.00030476,7]
[343973311,1733164247643,-271.055748,0.00030476,7]
[343973312,1733164247653,-271.055748,0.00030476,7]
[343973313,1733164247663,-271.055748,0.00030476,7]
[343973314,1733164247672,-271.055748,0.00030476,7]
[343973315,1733164247682,-271.055748,0.00030476,7]
[343973316,1733164247691,-271.055748,0.00030476,7]
[343973317,1733164247701,-271.055748,0.00030476,7]
[343973318,1733164247710,-271.055748,0.00030476,7]
[343973319,1733164247720,-271.055748,0.00030476,7]
[343973320,1733164247729,-271.055748,0.00030476,7]
[343973321,1733164247738,-271.055748,0.00030476,7]
[343973322,1733164247749,-271.055746,0.00030476,7]
[343973323,1733164247758,-222.73805917,0.00030476,2]
[343973324,1733164247767,-71054.42979147,0.00030476,2]
[343973325,1733164247781,-870286.61915267,0.00030476,10]
[343973326,1733164247791,-1809234.20081901,0.00030476,10]
[343973327,1733164247800,-1060.68871232,0.00030476,10]
[343973328,1733164247811,-600.0,0.00030476,5]
[343973329,1733164247821,-600.0,0.00030476,3]
[343973330,1733164247830,-600.0,0.00030476,2]
[343973331,1733164247840,-612910.07849741,0.00030476,10]
[343973332,1733164247850,-5214.21740646,0.00030476,2]
[343973333,1733164247860,-323671.46763043,0.00030476,10]
[343973334,1733164247870,-436722.08002959,0.00030476,10]
[343973335,1733164247880,-519.64320517,0.00030476,2]
[343973336,1733164247890,-697760.67307193,0.00030476,10]
[343973337,1733164247902,-170.03929969,0.00030476,5]
[343973338,1733164247912,-68653.24586975,0.00030476,7]
[343973339,1733164247923,-486.51384304,0.00030476,3]
[343973340,1733164247933,-609422.80655048,0.00030476,10]
[343973341,1733164247943,-958915.02769619,0.00030476,10]
[343973342,1733164247953,-2079729.52501318,0.00030476,10]
[343973343,1733164248006,-1911.8131965,0.00030476,10]
[343973344,1733164248139,-505.93922073,0.00024173,2]
[343973345,1733164248151,-500.0,0.00024173,2]
[343973346,1733164248161,-500.0,0.00024173,2]
[343973347,1733164248172,-503.98909091,0.00024721,2]
[343973348,1733164248182,-1000.0,0.00024721,2]
[343973349,1733164248193,-466.16749335,0.00025722,2]
[343973350,1733164248208,-1033.83250665,0.00025722,2]
[343973351,1733164248218,-2000.0,0.0002702,2]
[343973352,1733164248228,-500.0,0.00027391,2]
[343973353,1733164248238,-500.0,0.00027391,2]
[343973354,1733164248248,-500.0,0.00027391,2]
[343973355,1733164248257,-291.44695969,0.00027391,2]
[343973356,1733164248267,-582.81877375,0.00028556,5]
[343973357,1733164248282,-94391.90230964,0.00030476,10]
[343973366,1733164570376,1169.27083333,0.0002,2]
[343974992,1733164895962,1169.27083333,0.0002,2]
[343975002,1733164960989,261.543397,0.00013973,2]
[343975550,1733165180771,162.26651899,0.00019903,2]
[343975639,1733165221516,1169.27083333,0.0002,2]
[343976099,1733165432671,-1169.27083333,0.00020001,2]
[343976100,1733165432680,-313.14996285,0.00020347,2]
[343976101,1733165432689,-261.543397,0.00020447,2]
[343976102,1733165432698,-388.390771,0.00024869,2]
[343976103,1733165432707,-659.21432873,0.00025795,2]
[343976104,1733165432717,-300.0,0.00025893,2]
[343976105,1733165432726,-209.18040399,0.00025894,2]
[343976106,1733165432736,-300.0,0.00025894,2]
[343976107,1733165432745,-33987.8965233,0.00025894,2]
[343976108,1733165432757,-6834.83921856,0.00025894,2]
[343976109,1733165432769,-483.13741191,0.00025894,2]
[343976110,1733165432780,-670.08000004,0.00025894,2]
[343976115,1733165438644,-24900.0,0.00025767,2]
[343976116,1733165438654,-12292.04684619,0.00025894,2]
[343976117,1733165438664,-153.54672734,0.00025899,2]
[343976118,1733165438674,-343.01431174,0.00025999,2]
[343976119,1733165438683,-659.21432871,0.00026449,2]
[343976120,1733165438694,-170.892,0.00026849,14]
[343976121,1733165438704,-261.543397,0.00026921,2]
[343976122,1733165438713,-659.21432871,0.00027104,2]
[343976123,1733165438722,-1923.6,0.00027362,10]
[343976124,1733165438731,-162.17321865,0.00027371,2]
[343976125,1733165438740,-500.0,0.00027371,2]
[343976127,1733165438750,-500.0,0.00027371,2]
[343976129,1733165438760,-224.06998793,0.00027371,2]
[343976130,1733165438769,-219.00178224,0.00027371,2]
[343976131,1733165438778,-500.0,0.00027371,2]
[343976132,1733165438788,-500.0,0.00027371,2]
[343976133,1733165438797,-500.0,0.00027371,2]
[343976134,1733165438807,-500.0,0.00027371,2]
[343976135,1733165438816,-500.0,0.00027371,2]
[343976136,1733165438826,-189.50768621,0.00027371,2]
[343976137,1733165438835,-500.0,0.00027371,2]
[343976138,1733165438844,-500.0,0.00027371,2]
[343976139,1733165438853,-366.42036388,0.00027371,2]
[343976140,1733165438862,-500.0,0.00027371,2]
[343976141,1733165438872,-500.0,0.00027371,2]
[343976142,1733165438881,-500.0,0.00027371,2]
[343976143,1733165438891,-500.0,0.00027371,2]
[343976144,1733165438900,-500.0,0.00027371,2]
[343976145,1733165438910,-500.0,0.00027371,2]
[343976146,1733165438919,-500.0,0.00027371,2]
[343976147,1733165438928,-500.0,0.00027371,2]
[343976148,1733165438938,-500.0,0.00027371,2]
[343976149,1733165438947,-500.0,0.00027371,2]
[343976150,1733165438956,-500.0,0.00027371,2]
[343976151,1733165438966,-500.0,0.00027371,2]
[343976152,1733165438975,-500.0,0.00027371,2]
[343976153,1733165438984,-500.0,0.00027371,2]
[343976154,1733165438994,-185.72356286,0.00027371,2]
[343976155,1733165439003,-500.0,0.00027371,2]
[343976156,1733165439013,-500.0,0.00027371,2]
[343976157,1733165439023,-500.0,0.00027371,2]
[343976158,1733165439032,-500.0,0.00027371,2]
[343976159,1733165439041,-500.0,0.00027371,2]
[343976160,1733165439050,-500.0,0.00027371,2]
[343976161,1733165439061,-500.0,0.00027371,2]
[343976162,1733165439071,-594.03059787,0.00027371,2]
[343976163,1733165439080,-500.0,0.00027371,2]
[343976164,1733165439089,-500.0,0.00027371,2]
[343976165,1733165439098,-500.0,0.00027371,2]
[343976166,1733165439107,-500.0,0.00027371,2]
[343976167,1733165439116,-500.0,0.00027371,2]
[343976168,1733165439125,-500.0,0.00027371,2]
[343976169,1733165439135,-500.0,0.00027371,2]
[343976170,1733165439144,-209.46866787,0.00027397,7]
[343976171,1733165439153,-207.90954709,0.00027397,7]
[343976172,1733165439163,-500.0,0.00027397,7]
[343976173,1733165439172,-500.0,0.00027397,7]
[343976174,1733165439182,-500.0,0.00027397,7]
[343976175,1733165439191,-500.0,0.00027397,7]
[343976176,1733165439201,-509.10275459,0.00027397,7]
[343976177,1733165439210,-500.0,0.00027397,7]
[343976178,1733165439219,-500.0,0.00027397,7]
[343976179,1733165439231,-500.0,0.00027397,7]
[343976180,1733165439240,-500.0,0.00027397,7]
[343976181,1733165439249,-798.2,0.00027397,7]
[343976182,1733165439259,-500.0,0.00027397,7]
[343976183,1733165439267,-500.0,0.00027397,7]
[343976184,1733165439278,-500.0,0.00027397,7]
[343976185,1733165439287,-500.0,0.00027397,7]
[343976186,1733165439296,-500.0,0.00027397,7]
[343976187,1733165439307,-500.0,0.00027397,7]
[343976188,1733165439317,-500.0,0.00027397,7]
[343976189,1733165439326,-500.0,0.00027397,7]
[343976190,1733165439335,-500.0,0.00027397,7]
[343976191,1733165439344,-500.0,0.00027397,7]
[343976192,1733165439354,-444.82775113,0.00027397,7]
[343976193,1733165439363,-384.73480572,0.00027397,7]
[343976194,1733165439373,-500.0,0.00027397,7]
[343976195,1733165439382,-500.0,0.00027397,7]
[343976196,1733165439393,-500.0,0.00027397,7]
[343976197,1733165439403,-500.0,0.00027397,7]
[343976198,1733165439415,-500.0,0.00027397,7]
[343976199,1733165439424,-500.0,0.00027397,7]
[343976200,1733165439438,-1169.27083333,0.00027397,7]
[343976201,1733165439448,-1169.27083333,0.00027397,7]
[343976202,1733165439458,-680.85,0.00027397,7]
[343976203,1733165439467,-500.0,0.00027397,7]
[343976204,1733165439477,-500.0,0.00027397,7]
[343976205,1733165439487,-500.0,0.00027397,7]
[343976206,1733165439497,-1290.64,0.00027397,7]
[343976207,1733165439507,-500.0,0.00027397,7]
[343976209,1733165439517,-500.0,0.00027397,7]
[343976211,1733165439529,-500.0,0.00027397,7]
[343976212,1733165439539,-500.0,0.00027397,7]
[343976213,1733165439549,-500.0,0.00027397,7]
[343976215,1733165439560,-500.0,0.00027671,7]
[343976217,1733165439571,-594.4,0.00027671,7]
[343976219,1733165439580,-240.02,0.00027671,7]
[343976221,1733165439589,-798.2,0.00027671,7]
[343976223,1733165439599,-500.0,0.00027671,7]
[343976225,1733165439608,-500.0,0.00027671,7]
[343976227,1733165439618,-500.0,0.00027671,7]
[343976229,1733165439627,-500.0,0.00027671,7]
[343976231,1733165439637,-500.0,0.00027671,7]
[343976233,1733165439646,-500.0,0.00027671,7]
[343976236,1733165439656,-500.0,0.00027671,7]
[343976238,1733165439666,-500.0,0.00027671,7]
[343976240,1733165439676,-500.0,0.00027671,7]
[343976242,1733165439685,-1169.27083333,0.00027671,7]
[343976244,1733165439694,-680.85,0.00027671,7]
[343976246,1733165439704,-494.72,0.00027671,7]
[343976247,1733165439714,-1290.64,0.00027671,7]
[343976250,1733165439723,-500.0,0.00027671,7]
[343976251,1733165439733,-568.11967224,0.00027671,7]
[343976253,1733165439743,-500.0,0.00027671,7]
[343976255,1733165439753,-333.33,0.00027945,7]
[343976257,1733165439763,-798.2,0.00027945,7]
[343976259,1733165439772,-500.0,0.00027945,7]
[343976261,1733165439782,-500.0,0.00027945,7]
[343976264,1733165439792,-680.85,0.00027945,7]
[343976265,1733165439801,-1290.64,0.00027945,7]
[343976268,1733165439812,-319.46416831,0.00027945,7]
[343976269,1733165439821,-500.0,0.00027945,7]
[343976270,1733165439830,-798.2,0.00028219,7]
[343976271,1733165439840,-500.0,0.00028219,7]
[343976273,1733165439849,-680.85,0.00028219,7]
[343976274,1733165439859,-1290.64,0.00028219,7]
[343976275,1733165439868,-500.0,0.00028219,7]
[343976276,1733165439959,-420.0,0.00028482,2]
[343976277,1733165439970,-798.2,0.00028493,7]
[343976278,1733165439980,-680.85,0.00028493,7]
[343976279,1733165439990,-1290.64,0.00028493,7]
[343976280,1733165439999,-500.0,0.00028493,7]
[343976281,1733165440009,-798.2,0.00028767,7]
[343976282,1733165440018,-680.85,0.00028767,7]
[343976283,1733165440028,-1290.64,0.00028767,7]
[343976284,1733165440038,-500.0,0.00028767,7]
[343976285,1733165440047,-153.59,0.000288,31]
[343976286,1733165440059,-153.59,0.000288,31]
[343976288,1733165440068,-798.2,0.00029041,7]
[343976289,1733165440077,-680.85,0.00029041,7]
[343976290,1733165440087,-1290.64,0.00029041,7]
[343976291,1733165440097,-500.0,0.00029041,7]
[343976293,1733165440107,-798.2,0.00029315,7]
[343976295,1733165440117,-680.85,0.00029315,7]
[343976296,1733165440126,-1290.64,0.00029315,7]
[343976297,1733165440136,-500.0,0.00029315,7]
[343976298,1733165440146,-798.2,0.00029589,7]
[343976299,1733165440155,-680.85,0.00029589,7]
[343976300,1733165440165,-1290.64,0.00029589,7]
[343976301,1733165440175,-500.0,0.00029589,7]
[343976302,1733165440185,-3293.91,0.0002959,10]
[343976304,1733165440195,-153.59,0.000296,31]
[343976305,1733165440204,-153.59,0.000296,31]
[343976306,1733165440214,-153.59,0.000296,31]
[343976307,1733165440223,-153.59,0.000296,31]
[343976308,1733165440234,-9570.48400174,0.000296,2]
[343976310,1733165440245,-187.71951843,0.00029646,2]
[343976311,1733165440255,-653.0,0.00029746,15]
[343976312,1733165440265,-187.71951842,0.00029828,2]
[343976313,1733165440276,-798.2,0.00029863,7]
[343976314,1733165440286,-680.85,0.00029863,7]
[343976315,1733165440295,-1290.64,0.00029863,7]
[343976316,1733165440306,-500.0,0.00029863,7]
[343976317,1733165440320,-172.8005,0.0003,2]
[343976318,1733165440331,-151.0,0.0003,120]
[343976319,1733165440340,-151.0,0.0003,120]
[343976320,1733165440350,-186.0,0.0003,2]
[343976321,1733165440360,-187.71951842,0.00030011,2]
[343976322,1733165440369,-9570.48400174,0.00030075,2]
[343976323,1733165440379,-511.76701942,0.00030135,2]
[343976324,1733165440388,-798.2,0.00030136,7]
[343976325,1733165440398,-680.85,0.00030136,7]
[343976326,1733165440407,-1290.64,0.00030136,7]
[343976327,1733165440416,-536.0676,0.00030136,7]
[343976328,1733165440426,-197.042322,0.00030137,120]
[343976329,1733165440436,-187.71951842,0.00030193,2]
[343976330,1733165440447,-9570.48400174,0.0003022,2]
[343976331,1733165440457,-666.0,0.0003026,2]
[343976332,1733165440466,-6666.0,0.0003026,2]
[343976333,1733165440476,-150.0,0.00030266,2]
[343976334,1733165440486,-153.59,0.000303,31]